Cogmind - Beta 10.2 --- EXPLORER MODE // 2020.10.30 @ 16:45:35 // Halloween2020/ForbiddenLore Player: Zyalin Result: Self-destructed Performance ------------- Evolutions (6) 3000 Regions Visited (11) 2200 Robots Destroyed (67) 335 Value Destroyed (2545) 2545 Prototype IDs (6) 120 Alien Tech Used (0) 0 Bonus (2574) 2574 TOTAL SCORE: 10774 Bonus ------- High Alert Combat Kills 62 Follower Combat Kills 763 Network Hubs Disabled 800 Met Zhirov 300 Built Enhanced Grunts 300 A7 Reached Mainframe 300 Met R17 at Cetus 500 Read Decrypted Archives 300 Friendly Fire -751 Cogmind --------- Core Integrity 1150/1150 Matter 290/300 Energy 24/170 System Corruption 0% Temperature Cool (4) Movement Flying (22) Location -4/Factory Parts ------- > --- POWER (3) -------- Micro Fission Core > --- PROPULSION (8) --- Xenon Bombardment Thruster Biomechanical Wings Biomechanical Wings Biomechanical Wings Field Propulsion Drive Field Propulsion Drive Nuclear Pulse Array > --- UTILITY (6) ------ Advanced Cooling System Medium Storage Unit Medium Storage Unit Centrium Medium Armor Plating > --- WEAPON (3) ------- Improved KE Penetrator > --- INVENTORY (12) --- Deuterium Engine Light Fission Core Neutrino Core Centrium Medium Armor Plating Centrium Medium Armor Plating Shock Bomb Launcher Shock Bomb Launcher Mini Grenade Launcher Datajack Heavy Pick Peak State ------------ > --- POWER ------------ Light Angular Momentum Engine Neutrino Core Micro Fission Core > --- PROPULSION ------- Xenon Bombardment Thruster Xenon Bombardment Thruster Biomechanical Wings Biomechanical Wings Biomechanical Wings Field Propulsion Drive Field Propulsion Drive > --- UTILITY ---------- Advanced Cooling System Medium Storage Unit Medium Storage Unit Centrium Medium Armor Plating Centrium Medium Armor Plating > --- WEAPON ----------- Improved KE Penetrator Improved KE Penetrator > --- INVENTORY -------- Deuterium Engine Light Nuclear Core Light Fission Core Centrium Medium Armor Plating Shock Bomb Launcher Shock Bomb Launcher Mini Grenade Launcher Datajack Heavy Pick [Rating: 100] Favorites ----------- Power Light Deuterium Engine Engine Light Deuterium Engine Power Core Light Fission Core Propulsion Xenon Bombardment Thruster Treads Light Treads Leg Aluminum Leg Flight Unit Xenon Bombardment Thruster Utility Medium Storage Unit Device Advanced Heat Sink Storage Medium Storage Unit Hackware System Shield Protection Centrium Medium Armor Plating Weapon Improved Assault Rifle Ballistic Gun Improved Assault Rifle Launcher Shock Bomb Launcher Piercing Weapon Heavy Pick Build | -11 -10 -9 -8 -7 -6 -5 -5 -5 -5 -5 -4 ------- Run | Scr Mat Mat Mat Fac Fac Fac Ext Cet Arc Hub Fac Slots Evolved 13 | . 1 2 2 2 2 2 . . . . 2 Power 2 | . . . . 1 . 1 . . . . . Propulsion 6 | . . 2 1 1 1 . . . . . 1 Utility 4 | . 1 . . . 1 1 . . . . 1 Weapon 1 | . . . 1 . . . . . . . . Parts Attached 85 | 8 1 6 6 9 11 8 5 13 . 17 1 Power 17 | 1 . . . 3 1 3 1 1 . 7 . Engine 9 | 1 . . . 3 1 1 1 . . 2 . Core 8 | . . . . . . 2 . 1 . 5 . Reactor . | . . . . . . . . . . . . Propulsion 27 | 3 . 2 5 2 5 3 1 2 . 3 1 Treads 5 | 2 . 2 1 . . . . . . . . Leg 1 | 1 . . . . . . . . . . . Wheel . | . . . . . . . . . . . . Hover . | . . . . . . . . . . . . Flight 21 | . . . 4 2 5 3 1 2 . 3 1 Utility 19 | 2 1 2 . 1 4 2 1 2 . 4 . Device 7 | . . . . . 3 2 . . . 2 . Storage 2 | 1 . 1 . . . . . . . . . Processor . | . . . . . . . . . . . . Hackware 1 | . . . . . . . 1 . . . . Protection 9 | 1 1 1 . 1 1 . . 2 . 2 . Artifact . | . . . . . . . . . . . . Weapon 22 | 2 . 2 1 3 1 . 2 8 . 3 . Energy Gun . | . . . . . . . . . . . . Energy Cannon . | . . . . . . . . . . . . Ballistic Gun 14 | 2 . 2 . 3 . . 1 3 . 3 . Ballistic Cannon . | . . . . . . . . . . . . Launcher 5 | . . . 1 . . . 1 3 . . . Special Weapon . | . . . . . . . . . . . . Impact Weapon . | . . . . . . . . . . . . Slashing Weapon . | . . . . . . . . . . . . Piercing Weapon 3 | . . . . . 1 . . 2 . . . Special Melee Weapon . | . . . . . . . . . . . . Unidentified Prototypes 6 | . . 1 . 1 1 1 . 2 . . . Parts Lost 9 | . . . . . . 1 . 1 3 4 . Power 1 | . . . . . . . . . . 1 . Propulsion 6 | . . . . . . 1 . 1 2 2 . Utility 1 | . . . . . . . . . 1 . . Weapon 1 | . . . . . . . . . . 1 . Highest Loss Streak 3 | . . . . . . 1 . 1 3 2 . Average Slot Usage (%) 94 | . 99 98 90 93 99 89 94 99 96 81 65 Engine 9 | . 12 10 8 14 12 9 11 6 5 2 . Core 4 | . . . . . . 5 5 9 10 11 5 Treads 9 | . 25 38 25 . . . . . . . . Flight 28 | . . . 13 40 42 38 38 37 36 36 35 Device 5 | . . . . . 8 12 11 11 10 5 5 Storage 12 | . 12 14 16 14 12 11 11 11 11 11 10 Protection 7 | . 24 15 8 6 3 . . 4 5 5 5 Ballistic Gun 13 | . 25 20 16 17 14 6 7 12 15 6 5 Piercing Weapon 1 | . . . . . 3 5 5 3 . . . Naked Turns . | . . . . . . . . . . . . Heaviest Build 63 | 18 19 30 30 47 50 58 47 60 60 63 36 Greatest Support 108 | 40 40 86 108 42 51 52 54 54 54 56 69 Greatest Overweight (x) 1 | 1 . . 1 1 . 1 . 1 1 1 . Average Overweight (x) . | . . . . . . . . . . . . Largest Inventory Capacity 12 | 8 8 12 12 12 12 12 12 12 12 12 12 Average Capacity 11 | 5 8 9 12 12 12 12 12 12 12 12 12 Most Carried 12 | 5 5 12 12 12 12 12 12 12 12 12 10 Average Carried 10 | 2 4 8 11 11 11 11 11 11 11 10 10 Final Capacity 12 | 8 8 12 12 12 12 12 12 12 12 12 12 Final Carried 12 | 5 5 12 12 12 12 11 12 12 11 10 10 Class Distribution -------------------- 36% | Hacker-Mutant 31% | Hacker-Sprinter 11% | Scavenger-Sprinter 9% | Scavenger-Mutant 7% | Scavenger-Tank 3% | Hacker-Tank Dominant Class ---------------- Hacker-Mutant | -10/Materials Hacker-Mutant | -9/Materials Hacker-Mutant | -8/Materials Hacker-Mutant | -7/Factory Hacker-Sprinter | -6/Factory Hacker-Sprinter | -5/Factory Hacker-Sprinter | -5/Extension Scavenger-Mutant | -5/Cetus Scavenger-Tank | -5/Archives Scavenger-Sprinter | -5/Hub_04(d) Scavenger-Sprinter | -4/Factory Resources | -11 -10 -9 -8 -7 -6 -5 -5 -5 -5 -5 -4 ----------- Run | Scr Mat Mat Mat Fac Fac Fac Ext Cet Arc Hub Fac Matter Collected 1816 | 282 31 32 66 99 363 47 236 205 . 455 . Remotely . | . . . . . . . . . . . . Salvage Created 2904 | 82 102 307 61 120 297 62 498 464 . 911 . Parts 153 | 3 8 18 8 5 20 5 22 24 . 40 . Haulers Intercepted 3 | . . 1 . 1 . . . . . 1 . Recyclers Shooed 1 | . . . . . 1 . . . . . . Parts Field Recycled . | . . . . . . . . . . . . Retrieved Matter . | . . . . . . . . . . . . Parts Self-Destructed . | . . . . . . . . . . . . Prevented . | . . . . . . . . . . . . Kills | -11 -10 -9 -8 -7 -6 -5 -5 -5 -5 -5 -4 ------- Run | Scr Mat Mat Mat Fac Fac Fac Ext Cet Arc Hub Fac Combat Hostiles Destroyed 36 | . 4 3 4 1 5 . 6 6 . 7 . Melee 4 | . . . . . 1 . 3 . . . . Guns 20 | . 4 3 1 1 4 . . . . 7 . AOE 7 | . . . 3 . . . 3 1 . . . Classes Destroyed 12 | 1 2 2 3 1 1 . . 1 . 1 . Worker 8 | . . . 1 . . 1 . . . 6 . Builder 3 | . . 1 . . . . 1 . . 1 . Hauler 3 | . . 1 . 1 . . . . . 1 . Recycler 6 | 1 . 2 . . . . 2 . . 1 . Operator 5 | . . . . 1 . 1 2 . . 1 . Watcher 5 | . . . 1 . . 1 . 2 . 1 . Swarmer 8 | . 2 . 2 . . . 3 1 . . . Grunt 11 | . 2 3 . 1 2 . . . . 3 . Brawler 1 | . . . . . . . . . . 1 . Sentry 8 | . . . 2 . 2 . 1 . . 3 . Programmer 3 | . . . . . 1 . 2 . . . . Cetus Guard 5 | . . . . . . . . 5 . . . Tinkerer 1 | . . . . . . . . 1 . . . Best Kill Streak 11 | 1 2 4 6 1 2 2 7 5 . 11 . Combat Bots Only 4 | . 2 2 4 1 2 . 4 4 . 3 . Max Kills in Single Turn 3 | 1 1 1 2 1 1 1 2 1 . 3 . Gunslinging . | . . . . . . . . . . . . Exploded 2 | . . . 2 . . . 2 1 . . . Melee 1 | . . . . . 1 . 1 . . . . Uniques/NPCs Destroyed . | . . . . . . . . . . . . Combat | -11 -10 -9 -8 -7 -6 -5 -5 -5 -5 -5 -4 -------- Run | Scr Mat Mat Mat Fac Fac Fac Ext Cet Arc Hub Fac Damage Taken 2435 | . 58 46 190 69 138 82 280 177 446 949 . Core 258 | . 12 12 4 11 . . 56 15 . 148 . Absorbed by Shields 178 | . . . . . . . 21 157 . . . Core Remaining (%) 95 | 100 95 97 99 98 100 . . . . 78 . Volleys Fired 132 | 7 8 16 5 13 8 . 9 16 4 46 . Largest 3 | 1 2 2 2 3 3 . 2 1 3 2 . Hottest 105 | 20 40 40 46 74 74 . 61 36 105 70 . Shots Fired 208 | 7 16 32 6 18 21 . 12 16 12 68 . Gun 183 | 7 16 32 2 18 21 . 7 . 12 68 . Cannon . | . . . . . . . . . . . . Launcher 25 | . . . 4 . . . 5 16 . . . Special . | . . . . . . . . . . . . Kinetic 183 | 7 16 32 2 18 21 . 7 . 12 68 . Thermal . | . . . . . . . . . . . . Explosive 9 | . . . 4 . . . 5 . . . . Electromagnetic 16 | . . . . . . . . 16 . . . Robot Hit Streak 29 | 3 11 21 4 20 18 . 28 29 11 29 . Robot Miss Streak 2 | 1 1 1 1 . 1 . . 1 2 1 . Penetration Max 1 | . . . . . . . . . 1 1 . Secondary Targets 5 | . 2 1 . . 1 . . . . 1 . Max Gunslinging Chain 1 | . 1 1 . . 1 . . . . 1 . Shots Hit Robots 167 | 6 13 29 4 16 19 5 21 2 11 41 . Core Hits 147 | 2 7 14 12 7 14 3 19 27 3 39 . Critical Hits 11 | . . 1 . . . . . . . 10 . Critical Kills 3 | . . . . . . . . . . 3 . Critical Parts Destroyed 6 | . . 1 . . . . . . . 5 . Melee Attacks 29 | . . . . . 4 6 11 8 . . . Impact . | . . . . . . . . . . . . Slashing . | . . . . . . . . . . . . Piercing 29 | . . . . . 4 6 11 8 . . . Sneak Attacks 8 | . . . . . . 3 4 1 . . . Combat Hostiles 1 | . . . . . . . 1 . . . . Follow-up Attacks . | . . . . . . . . . . . . Damage Inflicted 7197 | 50 105 210 529 232 371 430 1192 1610 269 2199 . Guns 2659 | 50 105 207 18 232 331 . 110 . 269 1337 . Cannons . | . . . . . . . . . . . . Explosions 3221 | . . . 493 . . . 376 1490 . 862 . Melee 1296 | . . . . . 40 430 706 120 . . . Ramming 21 | . . 3 18 . . . . . . . . Kinetic 2659 | 50 105 207 18 232 331 . 110 . 269 1337 . Thermal 430 | . . . . . . . . 430 . . . Explosive 869 | . . . 493 . . . 376 . . . . Electromagnetic 1922 | . . . . . . . . 1060 . 862 . Impact . | . . . . . . . . . . . . Slashing . | . . . . . . . . . . . . Piercing 1296 | . . . . . 40 430 706 120 . . . Highest Corruption 3 | . 1 . . 1 . . . . . 3 . Average Corruption 1 | . 1 . . 1 . . . . . 1 . Corruption Purged . | . . . . . . . . . . . . Effects 4 | . 1 . . 3 . . . . . . . Message Errors 1 | . . . . 1 . . . . . . . Data Loss (minor) 1 | . 1 . . . . . . . . . . Targeting Errors 2 | . . . . 2 . . . . . . . Overload Shots . | . . . . . . . . . . . . Overflow Damage 252 | . . . 46 . . 85 106 15 . . . Projectiles . | . . . . . . . . . . . . Explosions 61 | . . . 46 . . . . 15 . . . Melee 191 | . . . . . . 85 106 . . . . Knockbacks . | . . . . . . . . . . . . Impact . | . . . . . . . . . . . . Kinetic . | . . . . . . . . . . . . Secondary . | . . . . . . . . . . . . Self-Inflicted Damage 268 | . . . 24 . . . . 8 . 236 . Shots 7 | . . . 2 . . . . 1 . 4 . Rammed 1 | . . . 1 . . . . . . . . Targets Rammed 2 | . . 1 1 . . . . . . . . Kicked . | . . . . . . . . . . . . Crushed 1 | . . 1 . . . . . . . . . Highest Temperature 281 | . 25 12 . 281 235 12 1 . 42 8 . Average Temperature 96 | . 12 6 . 145 76 6 1 . 21 2 . Received Heat Transfer 480 | . 36 42 45 63 45 27 33 18 . 171 . Effects 2 | . . . . 2 . . . . . . . Energy Bleed 1 | . . . . 1 . . . . . . . Interference 1 | . . . . 1 . . . . . . . Siege Activations . | . . . . . . . . . . . . Robots Corrupted 5 | . . . . . . . . 5 . . . Combat Hostiles 5 | . . . . . . . . 5 . . . Parts Fried 7 | . . . . . . . . 5 . 2 . Impact Corruptions . | . . . . . . . . . . . . Robots Melted . | . . . . . . . . . . . . Combat Hostiles . | . . . . . . . . . . . . Parts Melted . | . . . . . . . . . . . . Heat Transferred 350 | . . . . . . . . 350 . . . Parts Sabotaged . | . . . . . . . . . . . . Parts Stolen . | . . . . . . . . . . . . Parts Stripped . | . . . . . . . . . . . . Power Chain Reactions 3 | . . . . . . . . 3 . . . Missiles Intercepted . | . . . . . . . . . . . . Alert | -11 -10 -9 -8 -7 -6 -5 -5 -5 -5 -5 -4 ------- Run | Scr Mat Mat Mat Fac Fac Fac Ext Cet Arc Hub Fac Peak Influence 1241 | 5 182 174 259 132 567 306 438 649 175 1241 446 Initial 446 | . 2 55 52 85 47 204 109 183 97 30 446 Average 218 | 3 94 134 101 111 267 230 265 441 112 276 446 Maximum Alert Level 4 | . . . 1 . 2 1 2 2 . 4 2 Low Security (%) 60 | 100 100 100 86 100 55 . 26 3 100 52 . Level 1 23 | . . . 13 . 16 100 51 50 . 30 . Level 2 14 | . . . . . 27 . 21 46 . 9 100 Level 3 . | . . . . . . . . . . 5 . Level 4 . | . . . . . . . . . . 2 . Level 5 . | . . . . . . . . . . . . High Security . | . . . . . . . . . . . . Max Security . | . . . . . . . . . . . . Squads Dispatched 11 | . 1 . . 2 3 1 2 . . 2 . Investigation 4 | . 1 . . 1 1 . . . . 1 . Extermination 1 | . . . . . 1 . . . . . . Reinforcement 6 | . . . . 1 1 1 2 . . 1 . Assault . | . . . . . . . . . . . . Garrison . | . . . . . . . . . . . . Intercept . | . . . . . . . . . . . . Construction Impeded 1 | . . . . . . . . . . 1 . Haulers Reinforced 2 | . . . . 1 . 1 . . . . . Stealth | -11 -10 -9 -8 -7 -6 -5 -5 -5 -5 -5 -4 --------- Run | Scr Mat Mat Mat Fac Fac Fac Ext Cet Arc Hub Fac Distress Signals 9 | . 1 . 2 . 2 . 1 2 . 1 . Communications Jammed . | . . . . . . . . . . . . Distress Signals . | . . . . . . . . . . . . Times Spotted 124 | . 8 6 12 4 21 7 16 16 4 30 . Peak Tracking Total 17 | . 3 3 7 2 8 5 7 7 9 17 . Tactical Retreats 10 | . . . . . 3 1 1 . . 5 . Traps | -11 -10 -9 -8 -7 -6 -5 -5 -5 -5 -5 -4 ------- Run | Scr Mat Mat Mat Fac Fac Fac Ext Cet Arc Hub Fac Traps Triggered 13 | . 2 . 1 2 3 1 3 . . 1 . Indirectly . | . . . . . . . . . . . . Trap Hack Attempts . | . . . . . . . . . . . . Triggered . | . . . . . . . . . . . . Disarmed . | . . . . . . . . . . . . Reprogrammed . | . . . . . . . . . . . . Reused . | . . . . . . . . . . . . Traps Extracted . | . . . . . . . . . . . . Installed . | . . . . . . . . . . . . Triggered . | . . . . . . . . . . . . Machines | -11 -10 -9 -8 -7 -6 -5 -5 -5 -5 -5 -4 ---------- Run | Scr Mat Mat Mat Fac Fac Fac Ext Cet Arc Hub Fac Machines Disabled 29 | . . . 1 . . . . 2 3 23 . Max in Single Turn 8 | . . . 1 . . . . 1 3 8 . Garrison Access 2 | . . . . . . 1 . . . 1 . Network Hub 4 | . . . . . . . . . . 4 . Machines Sabotaged . | . . . . . . . . . . . . Garrisons Compromised . | . . . . . . . . . . . . Overloaded Fab Kills . | . . . . . . . . . . . . Fab Network Shutdowns . | . . . . . . . . . . . . Hacking | -11 -10 -9 -8 -7 -6 -5 -5 -5 -5 -5 -4 --------- Run | Scr Mat Mat Mat Fac Fac Fac Ext Cet Arc Hub Fac Machines Accessed 33 | . 2 1 1 1 4 3 11 2 1 7 . Terminals 28 | . 1 1 1 . 4 2 11 2 . 6 . Fabricators . | . . . . . . . . . . . . Repair Stations . | . . . . . . . . . . . . Recycling Units 2 | . 1 . . 1 . . . . . . . Scanalyzers . | . . . . . . . . . . . . Garrison Access 2 | . . . . . . 1 . . . 1 . Total Hacks 72 | . 7 3 4 3 9 3 20 4 5 14 . Successful 44 | . 4 1 1 2 2 3 14 2 5 10 . Failed 28 | . 3 2 3 1 7 . 6 2 . 4 . Catastrophic 6 | . . . 1 . 3 . . 1 . 1 . Database Lockouts . | . . . . . . . . . . . . Manual 44 | . 7 3 4 . 5 2 9 1 . 13 . Terminals 61 | . 6 3 4 . 9 2 20 4 . 13 . Fabricators . | . . . . . . . . . . . . Repair Stations . | . . . . . . . . . . . . Recycling Units 4 | . 1 . . 3 . . . . . . . Scanalyzers . | . . . . . . . . . . . . Garrison Access 2 | . . . . . . 1 . . . 1 . Terminal Hacks 22 | . 1 1 1 . 2 1 8 2 5 1 . Record 6 | . . . . . . . . 1 5 . . Open Door 7 | . . . . . . . 6 1 . . . Level Access Points 4 | . . 1 1 . . . 1 . . 1 . Branch Access Points 2 | . . . . . 1 1 . . . . . Terminal Index 2 | . . . . . 1 . 1 . . . . Recycling Unit Index 1 | . 1 . . . . . . . . . . Fabricator Hacks . | . . . . . . . . . . . . Repair Station Hacks . | . . . . . . . . . . . . Recycling Unit Hacks 2 | . . . . 2 . . . . . . . Retrieve Components 2 | . . . . 2 . . . . . . . Scanalyzer . | . . . . . . . . . . . . Garrison Access Hacks 2 | . . . . . . 1 . . . 1 . Seal Access 2 | . . . . . . 1 . . . 1 . Unauthorized Hacks 18 | . 3 . . . . 1 6 . . 8 . Terminals 17 | . 2 . . . . 1 6 . . 8 . Track 6 | . 1 . . . . . 2 . . 3 . Botnet 10 | . 1 . . . . 1 4 . . 4 . Operators 1 | . . . . . . . . . . 1 . Fabricators . | . . . . . . . . . . . . Repair Stations . | . . . . . . . . . . . . Recycling Units 1 | . 1 . . . . . . . . . . Tunnel 1 | . 1 . . . . . . . . . . Scanalyzers . | . . . . . . . . . . . . Garrison Access . | . . . . . . . . . . . . Data Cores Recovered 3 | . . . . 1 . 1 . . . 1 . Used 1 | . . . . . . 1 . . . . . Hacking Detections 18 | . 1 1 1 1 3 . 7 . . 4 . Full Trace Events 3 | . . . . 1 1 . . . . 1 . Feedback Events 1 | . . . . 1 . . . . . . . Corruption 1 | . . . . 1 . . . . . . . Feedback Blocked . | . . . . . . . . . . . . Robot Schematics Acquired . | . . . . . . . . . . . . Robots Built . | . . . . . . . . . . . . Matter . | . . . . . . . . . . . . Time . | . . . . . . . . . . . . Total Robot Build Rating . | . . . . . . . . . . . . Part Schematics Acquired . | . . . . . . . . . . . . Parts Built . | . . . . . . . . . . . . Matter . | . . . . . . . . . . . . Time . | . . . . . . . . . . . . Total Part Build Rating . | . . . . . . . . . . . . Parts Repaired . | . . . . . . . . . . . . Time . | . . . . . . . . . . . . Parts Recycled . | . . . . . . . . . . . . Recycled Matter . | . . . . . . . . . . . . Retrieved Matter . | . . . . . . . . . . . . Retrieved Components . | . . . . . . . . . . . . Parts Scanalyzed . | . . . . . . . . . . . . Part Schematics Acquired . | . . . . . . . . . . . . Parts Damaged . | . . . . . . . . . . . . Bothacking | -11 -10 -9 -8 -7 -6 -5 -5 -5 -5 -5 -4 ------------ Run | Scr Mat Mat Mat Fac Fac Fac Ext Cet Arc Hub Fac Used RIF Installer . | . . . . . . . . . . . . Robots Hacked . | . . . . . . . . . . . . Non-combat . | . . . . . . . . . . . . Combat . | . . . . . . . . . . . . Robot Hacks Applied . | . . . . . . . . . . . . Relay Couplers Released . | . . . . . . . . . . . . Robots Rewired . | . . . . . . . . . . . . Allies Hacked . | . . . . . . . . . . . . Hacks Repelled . | . . . . . . . . . . . . Allies | -11 -10 -9 -8 -7 -6 -5 -5 -5 -5 -5 -4 -------- Run | Scr Mat Mat Mat Fac Fac Fac Ext Cet Arc Hub Fac Total Allies 14 | . . . . . . . 9 5 . . . Largest Group 12 | . . . . . . . 7 12 12 . . Highest-Rated Group 784 | . . . . . . . 314 784 784 . . Highest-Rated Ally 156 | . . . . . . . 156 156 156 . . Total Orders . | . . . . . . . . . . . . Ally Attacks 90 | . . . . . . . 8 49 33 . . Total Damage 2501 | . . . . . . . 282 1277 942 . . Kills 17 | . . . . . . . 2 9 6 . . Allies Corrupted . | . . . . . . . . . . . . Allies Melted . | . . . . . . . . . . . . Intel | -11 -10 -9 -8 -7 -6 -5 -5 -5 -5 -5 -4 ------- Run | Scr Mat Mat Mat Fac Fac Fac Ext Cet Arc Hub Fac Robot Analysis Total . | . . . . . . . . . . . . Derelict Logs Recovered . | . . . . . . . . . . . . Drone Launches . | . . . . . . . . . . . . Drone Recoveries . | . . . . . . . . . . . . Exploration | -11 -10 -9 -8 -7 -6 -5 -5 -5 -5 -5 -4 ------------- Run | Scr Mat Mat Mat Fac Fac Fac Ext Cet Arc Hub Fac Turns Passed 2589 | 115 193 332 188 295 290 91 306 402 71 297 9 Spaces Moved 2970 | 62 107 168 114 268 623 203 486 245 46 620 28 Core 9 | 9 . . . . . . . . . . . Treads 388 | 46 107 168 67 . . . . . . . . Legs 7 | 7 . . . . . . . . . . . Wheels . | . . . . . . . . . . . . Hover . | . . . . . . . . . . . . Flight 2566 | . . . 47 268 623 203 486 245 46 620 28 Fastest Speed 22 | 50 160 160 31 25 22 22 22 22 28 22 22 Average Speed 54 | 140 160 160 143 90 22 29 22 75 93 23 24 Slowest Speed 165 | 160 160 160 165 111 22 100 22 100 99 97 25 Overloaded Moves . | . . . . . . . . . . . . Propulsion Burnouts . | . . . . . . . . . . . . Robots Hopped 57 | . . . . . 23 . 3 . . 31 . Cave-ins Triggered . | . . . . . . . . . . . . Exploration Rate (%) 35 | 5 25 29 15 14 29 7 70 68 76 83 1 Regions Visited 11 Branch Regions 4 Pre-discovered Areas 1 | . 1 . . . . . . . . . . Known Exits Taken 11 | 1 1 1 1 1 1 1 1 1 1 1 . Unknown Exits Taken . | . . . . . . . . . . . . Scrap Searched . | . . . . . . . . . . . . Spaces Dug 10 | . . . . . 3 1 . . . 6 . Terrain Destroyed 727 | . . . 12 . 3 1 2 45 1 663 . Melee 4 | . . . . . 3 1 . . . . . Projectile 32 | . . . . . . . 1 . 1 30 . AOE 691 | . . . 12 . . . 1 45 . 633 . Terrain Rammed . | . . . . . . . . . . . . Walls Destroyed . | . . . . . . . . . . . . Machines Disabled . | . . . . . . . . . . . . Actions | -11 -10 -9 -8 -7 -6 -5 -5 -5 -5 -5 -4 --------- Run | Scr Mat Mat Mat Fac Fac Fac Ext Cet Arc Hub Fac Total 3641 | 81 116 211 131 306 733 223 646 431 66 668 29 Wait 349 | . . 1 1 4 87 . 102 136 10 8 . Move 2861 | 61 106 167 113 267 581 202 479 244 45 568 28 Hop 41 | . . . . . 18 . 3 . . 20 . Pick Up 36 | 4 1 11 . 6 8 . 1 3 1 1 . Fast Attach 43 | 8 . 4 5 3 7 4 3 4 . 4 1 Attach 20 | . 1 . 1 4 1 3 1 2 . 7 . Detach 18 | 1 . 1 1 1 1 3 1 4 . 5 . Swap 22 | . . 2 . 2 3 1 1 7 . 6 . Drop 54 | . . 8 4 6 15 4 2 7 5 3 . Fire 132 | 7 8 16 5 13 8 . 9 16 4 46 . Melee 29 | . . . . . 4 6 11 8 . . . Ram 1 | . . . 1 . . . . . . . . Kick . | . . . . . . . . . . . . Crush 1 | . . 1 . . . . . . . . . Escape Stasis 33 | . . . . . . . 33 . . . . Rewire 1 | . . . . . . . . . 1 . . Trap . | . . . . . . . . . . . . Miscellaneous . | . . . . . . . . . . . . Route ------- -11/Scrapyard -10/Materials -9/Materials (discovered 3 exits: *Mat x3) -8/Materials (discovered 3 exits: *Fac x3) -7/Factory -6/Factory (discovered 3 exits: *Fac / *Low x2) -5/Factory (discovered 4 exits: *Upp x2 / *Ext x2) -5/Extension (discovered 3 exits: *Fac x2 / *Cet) -5/Cetus (discovered 2 exits: *Fac / *Arc) -5/Archives -5/Hub_04(d) (discovered 4 exits: *Fac x4) -4/Factory History --------- Turn | Location | Event 6 | -11/Scrapyard | Identified exit to Materials 6 | -11/Scrapyard | Discovered exit to Materials (range 15) 116 | -11/Scrapyard | Entered Materials 116 | -10/Materials | Evolved 1 slot: Utility x1 302 | -10/Materials | Identified exit to Materials 302 | -10/Materials | Discovered exit to Materials (range 5) 309 | -10/Materials | Entered another Materials area 309 | -9/Materials | Evolved 2 slots: Propulsion x2 318 | -9/Materials | Build established: Hacker-Mutant 354 | -9/Materials | Identified exit to Materials 641 | -9/Materials | Entered another Materials area 641 | -8/Materials | Evolved 2 slots: Propulsion x1, Weapon x1 660 | -8/Materials | Identified exit to Factory 829 | -8/Materials | Entered Factory 829 | -7/Factory | Evolved 2 slots: Power x1, Propulsion x1 1104 | -7/Factory | Identified exit to Factory 1104 | -7/Factory | Discovered exit to Factory (range 12) 1124 | -7/Factory | Entered another Factory area 1124 | -6/Factory | Evolved 2 slots: Propulsion x1, Utility x1 1313 | -6/Factory | Identified exit to Lower Caves 1313 | -6/Factory | Discovered exit to Lower Caves (range 15) 1413 | -6/Factory | Identified exit to Factory 1413 | -6/Factory | Discovered exit to Factory (range 5) 1414 | -6/Factory | Entered another Factory area 1414 | -5/Factory | Evolved 2 slots: Power x1, Utility x1 1444 | -5/Factory | Identified exit to Upper Caves 1444 | -5/Factory | Identified exit to Extension 1505 | -5/Factory | Entered Extension 1525 | -5/Extension | Rescued a captive Derelict 1526 | -5/Extension | Rescued a captive Derelict 1541 | -5/Extension | Build established: Hacker-Sprinter 1635 | -5/Extension | Identified exit to Factory 1672 | -5/Extension | Spotted B-75 Beast 1673 | -5/Extension | Spotted B-75 Beast 1686 | -5/Extension | Rescued a captive Derelict 1697 | -5/Extension | Rescued A7 1704 | -5/Extension | Rescued a captive Derelict 1711 | -5/Extension | Rescued a captive Derelict 1711 | -5/Extension | Rescued a captive Derelict 1714 | -5/Extension | Rescued a captive Derelict 1715 | -5/Extension | Rescued a captive Derelict 1754 | -5/Extension | Identified exit to Cetus 1754 | -5/Extension | Discovered exit to Cetus (range 6) 1811 | -5/Extension | Entered Cetus 1811 | -5/Cetus | Accompanied by 7 allies (A7) 1816 | -5/Cetus | Acquired a Cetus Manufacturing Module code from A7 1818 | -5/Cetus | Spotted Cetus Guard 1818 | -5/Cetus | Spotted Cetus Guard 1824 | -5/Cetus | Spotted Cetus Guard 1825 | -5/Cetus | Destroyed Cetus Guard 1827 | -5/Cetus | Destroyed Cetus Guard 1827 | -5/Cetus | Spotted Cetus Guard 1829 | -5/Cetus | Destroyed Cetus Guard 1831 | -5/Cetus | Destroyed Cetus Guard 1881 | -5/Cetus | Escorted A7 to Cetus Mainframe 1906 | -5/Cetus | Started Cetus Manufacturing Module 1931 | -5/Cetus | Manufactured an Enhanced Grunt 1956 | -5/Cetus | Manufactured an Enhanced Grunt 1981 | -5/Cetus | Manufactured an Enhanced Grunt 2006 | -5/Cetus | Manufactured an Enhanced Grunt 2031 | -5/Cetus | Manufactured an Enhanced Grunt 2055 | -5/Cetus | Found a strange terminal 2071 | -5/Cetus | Identified exit to Archives 2071 | -5/Cetus | Discovered exit to Archives (range 16) 2087 | -5/Cetus | Spotted Cetus Guard 2087 | -5/Cetus | Spotted Cetus Guard 2093 | -5/Cetus | Allies destroyed Cetus Guard 2096 | -5/Cetus | Destroyed Cetus Guard 2097 | -5/Cetus | Spotted Cetus Guard 2097 | -5/Cetus | Spotted Cetus Guard 2105 | -5/Cetus | Allies destroyed Cetus Guard 2108 | -5/Cetus | Allies destroyed Cetus Guard 2108 | -5/Cetus | Discovered exit to Factory (range 16) 2110 | -5/Cetus | Met Revision 17 2213 | -5/Cetus | Entered Archives 2213 | -5/Archives | Accompanied by 12 allies (A7) 2218 | -5/Archives | Received a hacking code to weaken MAIN.C 2231 | -5/Archives | Met Zhirov 2237 | -5/Archives | Reinforcements dispatched to Archives 2242 | -5/Archives | Read partially decrypted archive contents 2252 | -5/Archives | Zhirov warped through subspace 2254 | -5/Archives | Identified exit to Hub_04(d) 2254 | -5/Archives | Discovered exit to Hub_04(d) (range 15) 2270 | -5/Archives | Zhirov detonated Archives 2284 | -5/Archives | Entered Hub_04(d) 2301 | -5/Hub_04(d) | Lost 3 parts (2n1u) 2350 | -5/Hub_04(d) | Discovered exit to Factory (range 5) 2550 | -5/Hub_04(d) | Network Hub disabled 2557 | -5/Hub_04(d) | Network Hub disabled 2560 | -5/Hub_04(d) | Build established: Scavenger-Sprinter 2562 | -5/Hub_04(d) | Spotted Lightning 2562 | -5/Hub_04(d) | Spotted Lightning 2563 | -5/Hub_04(d) | Spotted Lightning 2563 | -5/Hub_04(d) | Spotted Lightning 2563 | -5/Hub_04(d) | Spotted Lightning 2563 | -5/Hub_04(d) | Spotted Lightning 2565 | -5/Hub_04(d) | Spotted Lightning 2565 | -5/Hub_04(d) | Spotted Lightning 2566 | -5/Hub_04(d) | Spotted Lightning 2571 | -5/Hub_04(d) | Network Hub disabled 2571 | -5/Hub_04(d) | Spotted Lightning 2571 | -5/Hub_04(d) | Spotted Lightning 2573 | -5/Hub_04(d) | Spotted Lightning 2574 | -5/Hub_04(d) | Network Hub disabled 2581 | -5/Hub_04(d) | Entered Factory 2581 | -4/Factory | Evolved 2 slots: Propulsion x1, Utility x1 2590 | -4/Factory | Self-destructed Last Messages --------------- 02572_ Lgt. Nuclear Core destroyed. 02573_ Penetrated by EMDS Slug. 02573_ Imp. KE Penetrator destroyed. 02574_ ALERT: Network intrusion management efficiency at 63%. 02574_ Control Node disabled. 02574_ Penetrated by EMDS Slug. 02575_ Critical hit. 02575_ EMDS Slug penetrates Lightning. 02575_ EMDS Slug penetrates Wall. 02577_ Penetrated by EMDS Slug. 02577_ Archive Unit disabled. 02578_ EMDS Slug penetrates Archive Unit. 02578_ Acquired 82 matter. 02579_ Slug penetrates Transfer Station. 02579_ Transfer Station disabled. 02580_ Acquired 4 matter. PARAMETERS=PROPULSION_1,UTILITY_1 LOCATION=FACTORY GOAL=ESCAPE 02587_ Acquired Nuclear Pulse Array. Map ----- +----------------------------------------------------+ | ?????????# +????????????????????????????? | | ?????????# #????????????????????????????? | | ?????????# #????????????????????????????? | | ?????????# #############????????????????? | | ?????????# ?????????????????? | | ?????????# #???????????????????? | | ?????????+ #???????????????????? | | ?????????# #???????????????????? | | ?????????# #???????????????????? | | ??????######+#+##########???????????????????? | | ??????# +????????????????????????? | | ??????# #????????????????????????? | | ??????# #????????????????????????? | | ??????# #????????????????????????? | | ??????# """ """ #????????????????????????? | | ??????# """ """ #????????????????????????? | | ??????# """ """ ###??????????????????????? | | ??????# + #??????????????????????? | | ??????# # #????????" ???????????? | | ??????# # ###????""" #??????????? | | ??????# ""T"" # #??? ???????????? | | ??????# """"" + ### """?????????????? | | ????????############ """ ????????????? | | ???????????????????# """ ????????? | | ???????????????????# ???????? | | ???????????????????#@ """ ???????? | | ?????????????????? """?????????????? | | ?????????????????### """?????????????? | | ???????????????????# ???????????? | | ???????????????????# ?????????? | | ????????????????????##############??????????? | | | | | | | | | | | | | | | | | | | | | | | | | | | | | | | | | | | | | | | +----------------------------------------------------+ Best States ------------- Heat Dissipation 74 Energy Generation 45 Energy Capacity 450 Matter Stores 300 Matter Capacity 300 Sight Range 16 Terrain Scan Density 10 Armor Coverage 450 Resistance: KI 35 Resistance: TH 35 Resistance: EX 35 Resistance: EM 35 Resistance: I 35 Resistance: S 35 Resistance: P 35 Weapon Shielding 33 Phase Shifting 5 Evasion (%) 70 Recoil Reduction 5 Matter Filtering 50 Offensive Hacking 20 Defensive Hacking 10 Item Schematics ----------------- None Robot Schematics ------------------ None Fabricated ------------ Nothing Alien Tech Used ----------------- None Achievements -------------- None Challenges ------------ None Game ------ Seed MediumArmageddonLog Manual? 0 Play Time 00:41:00 Cumulative 384.4 hours Start 2020.10.30 @ 15:23:03 End 2020.10.30 @ 16:45:35 Sessions 7 Manual Loads 0 Difficulty Explorer Special Mode Halloween2020/ForbiddenLore Game No. 250 Rogue 248 Adventurer 0 Explorer 2 Win Type - Total 38 Types 29/2/4/2/1/0/0/0/0 Lore% 88 Gallery% 91 Achievement% 86 Wizard Run 0 Options --------- ASCII 0 Keyboard 0 Movement Numpad Keybinds 0 Fullscreen 1 Font 18/X11Bold Map View 76x50 Tactical HUD 1 Map Filters NONE Filters NONE Steam 1 RUN: 69b31af9-7683-416a-92d0-584bf4697ac9